bitfinex-derivatives/quotes_ETHF0:USTF0_20241129
["timestamp","ask_amount","ask_price","bid_price","bid_amount"]
[1732901419312,0.27831,3590.7,3590.1,2.33933284]
[1732901419504,4.1926,3590.8,3590.1,2.33933284]
[1732901419700,0.27835,3590.2,3590.1,2.33933284]
[1732901420015,4.88838,3590.8,3589.8,1.245]
[1732901420016,0.27837,3590.0,3589.8,1.245]
[1732901420304,3.2078,3590.4,3589.7,0.5025]
[1732901420505,0.27841,3589.4,3589.3,2.33933284]
[1732901420906,0.27843,3589.2,3589.1,1.245]
[1732901421207,0.27843,3589.2,3588.9,2.85913284]
[1732901421511,0.27843,3589.2,3589.1,1.245]
[1732901423007,3.2078,3589.7,3589.1,1.245]
[1732901423308,16.3247836,3597.2,3589.6,3.2078]
[1732901423309,3.2078,3590.2,3589.6,3.2078]
[1732901423609,0.27835,3590.2,3589.9,2.33933284]
[1732901423910,3.2078,3590.7,3590.0,1.245]
[1732901424105,2.994,3592.2,3590.6,5.54713284]
[1732901424106,3.2078,3591.6,3590.6,5.54713284]
[1732901424410,3.2078,3591.6,3591.1,2.33933284]
[1732901424411,0.27827,3591.2,3591.1,2.33933284]
[1732901424611,3.2078,3591.6,3591.1,2.33933284]
[1732901425204,3.2078,3591.6,3590.9,1.245]
[1732901425205,3.2078,3591.6,3591.5,2.33933284]
[1732901425405,3.2078,3591.6,3591.5,2.61761284]
[1732901425604,3.48607,3591.6,3591.5,2.33933284]
[1732901426608,3.2078,3591.6,3591.1,2.9472643]
[1732901426810,3.2078,3591.2,3591.1,2.9472643]
[1732901427206,3.2078,3591.2,3591.1,3.2255743]
[1732901427401,3.2078,3591.2,3590.7,3.73193911]
[1732901427612,0.27832,3591.0,3590.8,1.245]
[1732901427907,3.2078,3591.2,3590.8,1.245]
[1732901428300,3.4861,3591.2,3590.9,0.27832]
[1732901428505,3.2078,3591.2,3590.8,1.52333]
[1732901428803,3.4861,3591.2,3590.8,1.52333]
[1732901429004,3.4861,3591.2,3590.8,1.245]
[1732901429205,3.2078,3591.2,3591.0,0.27831]
[1732901429612,3.2078,3591.2,3590.8,1.245]
[1732901429808,3.4861,3591.2,3590.9,0.27832]
[1732901430115,0.503,3591.5,3590.8,1.245]
[1732901430319,0.4741,3591.7,3590.8,1.245]
[1732901430509,0.4762,3591.4,3590.8,1.245]
[1732901430807,0.27832,3590.9,3590.8,1.245]
[1732901431611,3.2078,3591.1,3590.0,3.2078]
[1732901431809,0.27838,3590.2,3590.1,1.244]
[1732901432008,3.2078,3590.5,3589.9,0.27857481]
[1732901432009,0.27839,3590.0,3589.9,0.27857481]
[1732901432209,3.2078,3590.2,3589.2,3.2078]
[1732901432511,3.2078,3589.7,3589.3,0.27851273]
[1732901433108,0.27842,3589.6,3589.4,0.27844]
[1732901433614,0.27844,3589.4,3589.3,0.27851273]
[1732901433812,3.2078,3589.7,3589.5,0.27843]
[1732901434011,3.2078,3589.7,3589.6,0.27842]
[1732901434414,3.48622,3589.7,3589.4,0.27844]
[1732901434612,3.48622,3589.7,3589.3,0.27851273]
[1732901434613,3.2078,3589.7,3589.5,0.27843]
[1732901434809,3.2078,3589.7,3589.3,0.55695273]
[1732901435013,3.2078,3589.7,3588.9,0.5162]
[1732901435315,0.27844,3589.5,3589.2,0.27845]
[1732901435613,3.2078,3589.7,3589.0,0.27851273]
[1732901436121,0.27843,3589.6,3589.3,0.27844]
[1732901436317,3.2078,3589.7,3589.0,0.27851273]
[1732901436909,3.2078,3589.7,3589.1,0.27846]
[1732901436910,0.27844,3589.4,3589.1,0.27846]
[1732901437416,3.2078,3589.7,3588.9,1.7602]
[1732901437613,3.2078,3589.3,3588.9,1.244]
[1732901437819,0.27844,3589.4,3589.1,0.27846]
[1732901438017,0.27845,3589.3,3589.0,0.27847]
[1732901438311,0.27844,3589.4,3589.1,0.27846]
[1732901438511,3.2078,3589.7,3588.9,1.245]
[1732901438719,0.27846,3589.2,3588.9,1.52348]
[1732901438908,0.69603,3589.8,3588.9,1.245]
[1732901438909,0.27847,3589.0,3588.9,1.245]
[1732901439109,3.2078,3589.1,3588.4,3.2078]
[1732901439310,3.2078,3589.1,3588.6,1.245]
[1732901439511,0.27847,3589.1,3588.9,0.27847]
[1732901439708,3.2078,3589.5,3588.7,0.27849]
[1732901439709,0.27848,3589.0,3588.7,0.27849]
[1732901439910,0.27847,3589.1,3588.8,0.27848]
[1732901440105,0.27848,3588.9,3588.6,1.5235]
[1732901440314,0.27848,3588.9,3588.6,1.245]
[1732901440711,0.69611,3589.4,3588.7,1.245]
[1732901440915,0.27847,3589.0,3588.7,1.245]
[1732901441116,0.27847,3589.0,3588.7,1.52349]
[1732901441509,3.2078,3589.5,3588.7,1.245]
[1732901441817,0.27847,3589.1,3588.8,0.27848]
[1732901442018,3.2078,3589.5,3588.7,1.245]
[1732901442317,0.27845,3589.3,3589.0,0.27847]
[1732901442521,3.2078,3589.5,3588.8,1.245]
[1732901442713,0.27845,3589.4,3589.1,0.27846]
[1732901442910,3.2078,3589.5,3588.8,1.245]
[1732901443122,3.2078,3589.9,3588.8,1.245]
[1732901443313,3.2078,3589.9,3589.1,2.9472643]
[1732901443509,3.2078,3589.9,3589.8,0.27841]
[1732901443709,3.2078,3589.9,3589.8,1.245]
[1732901443921,3.2078,3589.9,3589.8,1.52341]
[1732901444523,3.2078,3589.9,3589.8,1.245]
[1732901444821,3.2078,3589.9,3589.8,1.52341]
[1732901445415,3.2078,3589.9,3589.8,1.245]
[1732901446023,0.27837,3590.3,3589.8,1.245]
[1732901446222,3.7003,3591.1,3590.0,3.90379]
[1732901446520,3.7003,3591.1,3591.0,2.9472643]
[1732901446521,0.27831,3591.1,3591.0,2.9472643]
[1732901446914,0.2783,3591.3,3591.0,3.2255743]
[1732901447312,0.01631,3591.5,3591.0,2.9472643]
[1732901447516,0.01631,3591.5,3591.4,2.9472643]
[1732901447727,0.27829,3591.3,3591.1,0.5257]
[1732901448015,0.2783,3591.3,3591.1,0.5257]
[1732901448217,0.2783,3591.3,3591.1,0.80401]
[1732901448416,0.27829,3591.4,3591.1,0.80401]
[1732901448618,0.01631,3591.5,3591.1,0.80401]
[1732901448819,0.27829,3591.4,3591.1,0.80401]
[1732901449019,0.27829,3591.4,3591.1,0.5257]
[1732901449237,0.27829,3591.4,3591.2,0.2783]
[1732901449422,1.0501,3592.2,3591.3,3.2078]
[1732901449624,1.0501,3592.2,3591.4,6.1550643]
[1732901449829,0.27823,3592.1,3591.6,0.27826]
[1732901450019,0.27825,3591.8,3591.6,0.27826]
[1732901450215,4.2579,3592.2,3591.7,0.27826]
[1732901450216,0.27824,3592.0,3591.7,0.27826]
[1732901450421,0.27828,3591.6,3591.4,2.9472643]
[1732901450624,0.27828,3591.5,3591.3,1.243]
[1732901450825,0.27828,3591.4,3591.3,1.243]
[1732901451027,0.27828,3591.4,3591.1,2.047]
[1732901451329,3.2078,3592.0,3591.1,1.7687]
[1732901451522,0.27827,3591.6,3591.3,0.27829]
[1732901451714,3.2078,3592.0,3591.1,1.7687]
[1732901451919,0.27829,3591.4,3591.2,0.2783]
[1732901452127,0.5263,3591.9,3591.2,0.2783]
[1732901452428,0.5263,3591.9,3591.4,0.27828]
[1732901452626,0.5263,3591.9,3591.7,0.27826]
[1732901452627,0.27825,3591.9,3591.7,0.27826]
[1732901452924,0.27825,3591.9,3591.6,0.27826]
[1732901453119,3.2078,3592.0,3591.4,2.9472643]
[1732901453321,3.2078,3592.0,3591.1,1.7687]
[1732901453628,0.27828,3591.5,3591.3,0.27829]
[1732901453817,0.27827,3591.7,3591.2,1.5213]
[1732901454022,3.2078,3592.0,3591.4,2.9472643]
[1732901454217,0.5254,3592.2,3591.8,2.9472643]
[1732901454424,0.27818,3592.8,3592.5,0.27819]
[1732901454722,3.23771,3593.3,3592.2,4.1902643]
[1732901454927,0.27818,3592.9,3592.2,4.1902643]
[1732901455121,0.27818,3592.9,3592.7,0.27818]
[1732901455323,0.27818,3592.9,3592.2,4.1902643]
[1732901455324,0.27818,3592.8,3592.6,0.27819]
[1732901455724,0.27817,3592.9,3592.7,0.27818]
[1732901455923,0.27816,3593.0,3592.8,0.27818]
[1732901456227,3.23771,3593.3,3592.7,2.9472643]
[1732901456725,0.02991,3593.3,3593.2,0.27815]
[1732901457124,0.02991,3593.3,3593.1,0.27815]
[1732901457327,0.30805,3593.3,3592.9,0.5219]
[1732901457525,0.02991,3593.3,3592.6,3.2078]
[1732901457827,0.02991,3593.3,3592.5,0.2782]
[1732901458023,0.27818,3592.8,3592.2,3.2078]
[1732901458228,0.27818,3592.9,3592.4,0.27821]
[1732901458421,3.2078,3593.2,3592.3,0.5219]
[1732901458858,0.27819,3592.6,3592.3,0.80011]
[1732901459061,0.27818,3592.8,3592.5,0.2782]
[1732901459263,0.02991,3593.3,3592.4,0.2784507]
[1732901459573,0.2782,3592.6,3592.4,0.2784507]
[1732901459761,0.27818,3592.8,3592.5,0.27819]
[1732901459956,0.02991,3593.3,3592.4,3.225715]
[1732901460151,0.27821,3592.4,3592.3,0.5219]
[1732901460352,3.2078,3592.8,3591.9,1.242]
[1732901460566,0.27826,3591.8,3591.5,1.7179]
[1732901460853,3.2078,3592.4,3591.7,3.4862507]
[1732901461050,0.5255,3592.7,3592.1,3.2078]
[1732901461249,3.7076,3592.9,3592.3,0.27821]
[1732901461452,0.2782,3592.5,3592.3,0.27821]
[1732901462252,0.4998,3592.9,3592.2,1.242]
[1732901462459,0.27822,3592.3,3592.2,1.242]
[1732901462652,0.5011,3592.8,3592.2,1.242]
[1732901462857,0.2782,3592.5,3592.3,0.27821]
[1732901463062,0.27821,3592.4,3592.2,1.52022]
[1732901463454,0.27822,3592.3,3592.2,1.242]
[1732901463664,0.4998,3592.9,3592.2,1.242]
[1732901464165,0.2782,3592.6,3592.4,0.27821]
[1732901464358,0.4998,3592.9,3592.3,0.5194]
[1732901464867,0.4998,3592.9,3592.3,0.79761]
[1732901465068,0.27817,3592.9,3592.6,0.27818]
[1732901465368,0.27815,3593.1,3592.6,0.27818]
[1732901465559,0.4957,3593.2,3592.6,0.27819]
[1732901465859,0.27817,3592.9,3592.6,0.27819]
[1732901466064,0.27817,3592.9,3592.3,0.5194]
[1732901466065,0.4957,3593.2,3592.7,0.27818]
[1732901466258,0.4957,3593.2,3592.5,3.2078]
[1732901466468,3.2078,3593.4,3592.6,0.27819]
[1732901466469,0.27816,3593.1,3592.6,0.27819]
[1732901466771,3.2078,3593.4,3592.5,3.2078]
[1732901467062,3.2078,3593.4,3592.9,0.27816]
[1732901467368,3.2078,3593.4,3592.5,3.2078]
[1732901467758,0.27817,3592.9,3592.6,0.27819]
[1732901468066,0.27816,3593.1,3592.8,0.27817]
[1732901468263,0.27815,3593.2,3592.5,3.2078]
[1732901468571,3.2078,3593.4,3592.5,3.2078]
[1732901468752,0.27815,3593.2,3592.9,0.27816]
[1732901469367,0.27816,3593.1,3592.8,0.27817]
[1732901469567,0.27815,3593.2,3592.9,0.27817]
[1732901469876,0.27815,3593.2,3593.0,0.9885]
[1732901470462,3.2078,3593.4,3593.0,0.9885]
[1732901470463,3.2078,3593.4,3593.1,1.242]
[1732901470670,0.27815,3593.2,3593.1,1.242]
[1732901471056,0.27815,3593.2,3593.1,1.732]
[1732901471973,0.27814,3593.3,3593.1,2.01015]
[1732901472181,0.27814,3593.3,3593.1,1.732]
[1732901472464,3.2078,3593.4,3593.1,1.732]
[1732901472664,0.27815,3593.2,3593.1,1.732]
[1732901474058,0.27815,3593.2,3593.1,1.242]
[1732901474363,3.2078,3594.8,3593.1,6.242]
[1732901474548,3.2078,3594.8,3594.0,3.2253443]
[1732901474549,0.4827,3594.7,3594.0,3.2253443]
[1732901474757,0.27803,3594.7,3594.0,4.4673443]
[1732901474961,3.2078,3594.8,3594.1,0.5259]
[1732901475164,0.4827,3595.3,3594.1,0.5259]
[1732901475165,3.6905,3595.3,3594.1,0.5259]
[1732901475365,3.6905,3595.3,3594.4,2.9472643]
[1732901475655,0.4827,3595.3,3594.6,3.48584]
[1732901475952,0.4827,3595.3,3594.6,0.27803]
[1732901476150,3.6905,3595.3,3594.3,2.3240341]
[1732901476343,0.27805,3594.5,3594.3,0.27806]
[1732901476539,0.27802,3594.9,3594.6,0.27803]
[1732901476835,0.27799,3595.2,3594.7,2.3240341]
[1732901477138,0.27799,3595.2,3594.6,3.2078]
[1732901477139,0.27801,3594.9,3594.8,0.5092]
[1732901477443,0.69493,3595.5,3594.8,0.5092]
[1732901477629,0.27798,3595.4,3594.8,0.78722]
[1732901477834,3.2078,3595.3,3594.8,0.78722]
[1732901478039,3.2078,3595.3,3594.8,0.5092]
[1732901478336,0.4865,3595.6,3595.1,0.278]
[1732901478537,3.2078,3595.4,3594.8,0.5092]
[1732901478747,0.28783907,3595.2,3595.1,0.27799]
[1732901479043,0.28783907,3595.2,3595.1,0.278]
[1732901479240,0.00984907,3595.2,3595.1,0.278]
[1732901479738,0.28783907,3595.2,3595.1,0.278]
[1732901480040,0.28783907,3595.2,3594.5,0.69511]
[1732901480041,0.00984907,3595.2,3594.4,0.2783174]
[1732901480242,4.2414,3595.1,3594.4,0.2783174]
[1732901480542,0.00984907,3595.2,3594.6,3.2078]
[1732901480840,0.00984907,3595.2,3595.1,0.278]
[1732901481637,0.00984907,3595.2,3594.7,1.4924]
[1732901481835,0.27802,3594.8,3594.7,0.4935]
[1732901482042,0.5052,3595.1,3594.7,0.4935]
[1732901482337,0.00984907,3595.2,3594.7,0.4935]
[1732901482541,0.27801,3595.0,3594.9,0.27801]
[1732901483246,0.27801,3594.9,3594.8,1.7212]
[1732901483642,0.27804,3594.6,3594.5,1.242]
[1732901483946,3.2078,3594.9,3594.6,0.27803]
[1732901484149,0.27804,3594.6,3594.5,1.52004]
[1732901484351,0.27803,3594.7,3594.5,1.242]
[1732901484640,0.983,3595.1,3594.5,1.242]
[1732901484641,3.2078,3595.0,3594.5,1.242]
[1732901484846,3.2078,3595.0,3594.4,0.2783174]
[1732901485034,0.27804,3594.6,3594.5,0.27804]
[1732901485643,0.27804,3594.5,3594.4,1.52005]
[1732901486043,0.27804,3594.6,3594.5,0.27804]
[1732901486242,3.2078,3595.0,3594.4,0.27805]
[1732901486744,0.27803,3594.7,3594.6,0.27804]
[1732901486946,0.27803,3594.7,3594.3,0.2781262]
[1732901487142,0.00984907,3595.2,3594.5,3.2078]
[1732901487451,0.28783907,3595.2,3594.9,0.27801]
[1732901487953,0.28783907,3595.2,3594.8,0.4807]
[1732901487954,0.28783907,3595.2,3595.0,0.278]
[1732901488340,0.00984907,3595.2,3594.8,0.4807]
[1732901488542,0.00984907,3595.2,3595.1,0.278]
[1732901490248,0.00984907,3595.2,3594.6,2.9615]
[1732901490249,0.27805,3594.5,3594.3,1.5201262]
[1732901490545,0.27804,3594.5,3594.3,1.5201262]
[1732901490746,0.27805,3594.4,3594.3,0.2781262]
[1732901490946,0.27805,3594.4,3594.3,1.5201262]
[1732901492047,0.27801,3595.0,3594.9,0.27801]
[1732901492248,0.00984907,3595.2,3595.1,0.278]
[1732901492549,0.00984907,3595.2,3595.1,3.4858]
[1732901493550,0.00984907,3595.2,3595.1,6.42750875]
[1732901494241,0.28783907,3595.2,3595.1,3.2078]
[1732901494441,0.28783907,3595.2,3595.1,3.4858]
[1732901494442,0.00984907,3595.2,3595.1,3.4858]
[1732901494645,0.28783907,3595.2,3595.1,3.2078]
[1732901494850,0.28783907,3595.2,3595.1,1.242]
[1732901495559,0.278,3595.1,3595.0,1.7565]
[1732901496648,0.278,3595.1,3595.0,2.03451]
[1732901496851,0.278,3595.1,3595.0,1.7565]
[1732901497253,0.278,3595.1,3595.0,2.03451]
[1732901497453,0.278,3595.1,3595.0,1.7565]
[1732901497848,0.278,3595.1,3595.0,2.03451]
[1732901498249,0.00984907,3595.2,3595.1,0.278]
[1732901500152,0.278,3595.1,3595.0,2.0345]
[1732901500353,0.28783907,3595.2,3595.1,0.278]
[1732901500555,0.278,3595.1,3595.0,2.0345]
[1732901500757,0.00984907,3595.2,3595.1,0.278]
[1732901500758,0.28784907,3595.2,3595.1,0.278]
[1732901500956,0.00984907,3595.2,3595.0,1.7565]
[1732901501147,0.00984907,3595.2,3595.1,0.278]
[1732901503254,0.00984907,3595.2,3595.0,1.7565]
[1732901503954,0.00984907,3595.2,3595.1,0.278]
[1732901504255,0.00984907,3595.2,3595.0,1.7565]
[1732901504750,0.00984907,3595.2,3595.0,2.0345]
[1732901504950,0.00984907,3595.2,3595.1,0.278]
[1732901505860,0.00984907,3595.2,3595.0,0.5145]
[1732901506052,0.00984907,3595.2,3594.7,0.27803]
[1732901506251,0.278,3595.1,3594.6,1.242]
[1732901506453,0.4877,3595.1,3594.6,1.242]
[1732901506752,0.27801,3595.0,3594.9,0.27801]
[1732901507055,0.4877,3595.1,3594.6,1.242]
[1732901507254,0.27801,3595.0,3594.9,0.27801]
[1732901507449,0.4877,3595.1,3595.0,0.27801]
[1732901507656,0.7657,3595.1,3595.0,0.27801]
[1732901508155,0.4877,3595.1,3594.6,1.242]
[1732901508556,0.27802,3594.9,3594.8,0.27801]
[1732901508956,0.00984907,3595.2,3595.1,0.278]
[1732901510462,0.00984907,3595.2,3595.1,0.98554859]
[1732901510859,0.00984907,3595.2,3595.1,3.92725734]
[1732901511061,0.27793,3596.1,3595.1,3.92725734]
[1732901511062,0.27792,3596.2,3595.1,3.64925734]
[1732901511360,0.5017,3596.5,3595.6,3.2078]
[1732901511561,0.69475,3596.4,3595.7,1.249]
[1732901511752,3.2078,3596.4,3595.7,1.249]
[1732901511956,0.27793,3596.0,3595.8,0.27794]
[1732901512369,3.2078,3596.4,3595.7,1.249]
[1732901513363,0.27792,3596.2,3596.1,0.27792]
[1732901513572,0.27792,3596.1,3596.0,0.27793]
[1732901514068,0.27792,3596.2,3595.8,0.27794]
[1732901514361,0.5017,3596.5,3595.8,0.528]
[1732901514568,0.27792,3596.2,3596.1,0.27792]
[1732901514864,0.27793,3596.1,3596.0,0.27792]
[1732901515061,0.27794,3596.0,3595.9,0.27793]
[1732901515465,0.27794,3595.9,3595.8,0.80594]
[1732901515763,3.2078,3596.3,3595.7,1.249]
[1732901515965,0.27795,3595.8,3595.7,1.52694]
[1732901516159,0.27795,3595.8,3595.7,1.249]
[1732901516468,0.69487,3595.8,3595.1,1.249]
[1732901516765,0.27799,3595.2,3595.1,1.249]
[1732901516960,0.27799,3595.3,3595.2,0.27798]
[1732901517157,3.2078,3595.9,3595.8,0.27794]
[1732901517365,3.2078,3596.2,3596.1,0.27791]
[1732901517857,3.2078,3596.6,3595.8,1.94386]
[1732901518057,0.27792,3596.2,3596.1,0.27791]
[1732901518255,0.2779,3596.5,3596.4,0.2779]
[1732901518458,3.2078,3596.6,3595.9,0.5111]
[1732901518766,0.27789,3596.5,3596.4,0.27789]
[1732901518970,0.2779,3596.5,3596.4,0.2779]
[1732901519262,0.27788,3596.6,3596.5,0.27789]
[1732901519460,0.27789,3596.6,3596.5,0.27789]
[1732901519663,0.27789,3596.5,3596.4,0.27789]
[1732901519862,0.27789,3596.6,3596.5,0.27789]
[1732901520165,0.529,3596.7,3596.0,0.511]
[1732901520364,0.2779,3596.4,3596.3,0.2779]
[1732901520559,1.2237,3596.7,3596.0,0.511]
[1732901520755,0.2779,3596.4,3596.3,0.2779]
[1732901520961,0.27792,3596.1,3596.0,0.78893]
[1732901521369,0.529,3596.7,3596.0,0.511]
[1732901521762,0.27792,3596.1,3596.0,0.511]
[1732901521968,0.27792,3596.1,3596.0,1.249]
[1732901522269,0.27792,3596.1,3596.0,1.52693]
[1732901522568,0.27792,3596.1,3596.0,1.249]
[1732901522761,0.27792,3596.1,3596.0,0.27793]
[1732901523263,0.27791,3596.3,3596.2,0.27791]
[1732901523667,3.2078,3596.5,3595.9,0.5111]
[1732901523870,3.2078,3596.5,3596.4,0.2779]
[1732901524072,0.27788,3596.7,3596.6,0.27788]
[1732901524568,0.5187,3597.1,3596.2,3.2078]
[1732901524569,0.27788,3596.6,3596.2,3.2078]
[1732901524872,10.90404129,3596.4,3596.3,0.27791]
[1732901525368,0.27788,3596.7,3596.2,3.7065]
[1732901525571,0.27788,3596.7,3596.5,0.27789]
[1732901525866,0.27788,3596.7,3596.2,0.77661]
[1732901525867,10.90178923,3596.3,3596.2,0.77661]
[1732901526064,10.90178923,3596.3,3596.2,3.98441]
[1732901526459,10.90178923,3596.3,3596.2,6.92611875]
[1732901526460,9.51142502,3596.3,3596.2,6.92611875]
[1732901526662,0.5187,3597.1,3596.2,6.92611875]
[1732901526663,0.5187,3597.1,3596.9,0.27785]
[1732901526862,0.27785,3597.0,3596.9,0.1558409]
[1732901527065,0.5187,3597.1,3596.7,0.5284]
[1732901527276,15.05766233,3597.7,3596.7,2.2822]
[1732901527567,0.4942,3597.6,3596.7,2.2822]
[1732901527868,0.4942,3597.6,3596.8,0.27787]
[1732901527869,0.27786,3597.0,3596.8,0.27787]
[1732901528061,3.9024,3597.3,3596.7,2.2822]
[1732901528265,0.27787,3596.8,3596.7,0.5284]
[1732901528463,0.27789,3596.6,3596.5,1.249]
[1732901528663,0.27789,3596.6,3596.3,0.5284]
[1732901528970,0.27789,3596.5,3596.4,1.249]
[1732901529769,3.7339,3596.9,3596.4,1.249]
[1732901530065,0.80397,3596.9,3596.7,0.27787]
[1732901530269,0.27787,3596.8,3596.5,0.27789]
[1732901530469,0.27788,3596.6,3596.4,1.249]
[1732901530658,0.27789,3596.5,3596.4,0.27801022]
[1732901530861,0.27789,3596.6,3596.5,0.27789]
[1732901531167,0.5261,3596.9,3596.4,1.52701022]
[1732901531363,0.27789,3596.5,3596.4,1.52701022]
[1732901531560,0.5261,3596.9,3596.4,1.52701022]
[1732901531763,3.7339,3596.9,3596.4,0.55590022]
[1732901531964,0.27789,3596.5,3596.4,0.27801022]
[1732901532165,0.27789,3596.5,3596.4,0.55591022]
[1732901532369,0.27789,3596.6,3596.5,0.27788]
[1732901532666,0.27788,3596.7,3596.6,0.27788]
[1732901532871,0.5261,3596.9,3596.4,0.27801022]
[1732901533270,0.27787,3596.8,3596.6,0.27788]
[1732901533563,0.27787,3596.8,3596.4,0.27801022]
[1732901533564,0.27787,3596.8,3596.7,0.27787]
[1732901533770,3.90232,3597.7,3596.6,2.94170875]
[1732901534067,3.90232,3597.7,3596.5,0.69473]
[1732901534068,0.27783,3597.3,3597.2,0.27783]
[1732901534264,0.27783,3597.3,3597.2,2.02613]
[1732901534572,0.27783,3597.3,3597.2,2.50513]
[1732901535170,0.27783,3597.3,3597.2,2.50514]
[1732901535560,0.27782,3597.5,3597.3,0.27783]
[1732901535766,3.2078,3597.7,3597.3,0.27783]
[1732901536274,3.2078,3597.7,3597.2,2.2273]
[1732901536275,0.27783,3597.3,3597.2,2.2273]
[1732901536471,0.27783,3597.3,3597.2,2.50514]
[1732901536660,0.27783,3597.3,3597.2,2.2273]
[1732901536865,11.15616797,3597.3,3597.2,2.2273]
[1732901537065,11.15616797,3597.3,3597.2,2.50514]
[1732901537265,11.15616797,3597.3,3597.2,2.2273]
[1732901537566,11.15616797,3597.3,3596.4,0.97274022]
[1732901537567,0.27789,3596.5,3596.4,0.55591022]
[1732901537764,11.15251583,3596.7,3596.6,1.249]
[1732901538362,10.87464583,3596.7,3596.4,0.27801022]
[1732901538668,11.15013919,3596.5,3596.4,0.55591022]
[1732901538875,0.27789,3596.5,3596.4,2.03601022]
[1732901539571,10.87224919,3596.6,3596.5,0.27789]
[1732901539768,10.87224919,3596.6,3596.4,2.03601022]
[1732901539970,0.27789,3596.5,3596.4,2.03601022]
[1732901540175,0.27789,3596.5,3596.4,2.31390022]
[1732901540472,0.27789,3596.6,3596.5,0.27789]
[1732901540667,0.27789,3596.5,3596.4,2.03601022]
[1732901540871,0.27789,3596.5,3596.4,0.79501022]
[1732901541073,10.87224919,3596.6,3596.5,0.27789]
[1732901541269,10.87224919,3596.6,3596.5,3.48569]
[1732901541472,10.87464583,3596.7,3596.6,0.27788]
[1732901541473,20.35700232,3596.7,3596.6,0.27788]
[1732901541663,20.35700232,3596.7,3596.6,0.76508]
[1732901541867,9.48475313,3596.7,3596.6,0.76508]
[1732901542666,8.97091148,3596.7,3596.6,5.76508]
[1732901542865,0.27781,3597.6,3597.5,0.27781]
[1732901543064,0.27781,3597.5,3597.4,2.94170875]
[1732901543271,0.27781,3597.5,3597.4,3.21952875]
[1732901543462,0.27781,3597.5,3597.3,1.51882]
[1732901543463,0.27782,3597.5,3597.3,1.51882]
[1732901543665,0.27782,3597.4,3597.3,1.241]
[1732901543868,0.5145,3597.8,3597.3,1.241]
[1732901544073,0.27782,3597.5,3597.3,1.51882]
[1732901544267,0.5145,3597.8,3597.3,1.51882]
[1732901544468,0.27782,3597.4,3597.3,1.241]
[1732901544975,0.69453,3597.6,3597.0,4.18170875]
[1732901545171,0.27784,3597.1,3597.0,1.24]
[1732901545567,0.27784,3597.1,3597.0,1.51785]
[1732901545771,0.27784,3597.1,3597.0,1.24]
[1732901546168,0.4842,3597.4,3597.0,2.32065585]
[1732901546374,0.27784,3597.1,3597.0,2.59850585]
[1732901546670,0.27784,3597.1,3597.0,2.32065585]
[1732901547071,0.27784,3597.2,3597.1,0.27784]
[1732901547272,0.27784,3597.1,3597.0,2.59850585]
[1732901547475,0.27784,3597.1,3597.0,2.32065585]
[1732901547772,0.27784,3597.1,3597.0,3.56065585]
[1732901548571,0.27787,3596.8,3596.7,0.4845]
[1732901549371,0.27788,3596.6,3596.5,3.56065585]
[1732901549569,0.27788,3596.6,3596.5,3.83854585]
[1732901549873,0.27787,3596.8,3596.7,0.27787]
[1732901550074,0.27788,3596.6,3596.5,2.59854585]
[1732901550274,0.27788,3596.6,3596.5,3.83854585]
[1732901550578,0.27788,3596.6,3596.5,2.32065585]
[1732901550775,0.27788,3596.6,3596.0,0.5098]
[1732901550776,0.69471,3596.6,3595.9,1.24]
[1732901550970,3.2078,3596.7,3595.9,1.24]
[1732901551277,3.48564,3597.1,3597.0,0.27785]
[1732901551571,3.2078,3597.1,3597.0,2.59850585]
[1732901551769,0.4842,3597.4,3597.0,2.32065585]
[1732901552371,0.27784,3597.2,3597.0,2.32065585]
[1732901552576,0.27784,3597.2,3597.0,2.59850585]
[1732901552872,0.27784,3597.1,3597.0,2.32065585]
[1732901553571,1.17876,3597.4,3596.9,1.24]
[1732901553871,3.2078,3597.5,3597.0,0.27785]
[1732901554071,0.27784,3597.2,3597.0,0.27785]
[1732901554270,0.27784,3597.2,3597.1,0.27784]
[1732901554573,0.27784,3597.1,3597.0,2.59850585]
[1732901554974,3.2078,3597.5,3597.1,0.27784]
[1732901555171,0.27783,3597.3,3597.2,0.27784]
[1732901555378,0.27784,3597.2,3597.1,0.27784]
[1732901555579,3.2078,3597.5,3597.1,0.27784]
[1732901555771,3.2078,3597.5,3597.0,2.32065585]
[1732901555972,3.48561,3597.5,3597.4,2.32065585]
[1732901556368,0.27784,3597.1,3597.0,2.32065585]
[1732901557774,3.2078,3597.6,3596.9,1.24]
[1732901557980,0.27781,3597.6,3597.3,0.27782]
[1732901558179,0.27781,3597.6,3596.9,1.47816113]
[1732901558180,1.0064,3597.8,3597.4,0.27782]
[1732901558367,0.27781,3597.5,3597.2,0.27784]
[1732901558672,0.2778,3597.7,3597.2,0.27784]
[1732901558975,0.27781,3597.6,3597.4,0.27782]
[1732901559274,1.0064,3597.8,3597.3,0.76192]
[1732901559470,1.0064,3597.8,3597.1,3.2078]
[1732901559676,0.27782,3597.4,3597.2,0.27783]
[1732901560183,0.27782,3597.5,3597.1,3.2078]
[1732901560374,1.0064,3597.8,3597.3,0.27782]
[1732901560575,0.27782,3597.4,3597.2,1.51783]
[1732901560771,1.0064,3597.8,3597.3,0.27783]
[1732901560971,0.2778,3597.7,3597.5,0.27781]
[1732901561178,0.2778,3597.7,3597.6,0.27781]
[1732901561383,0.2778,3597.7,3597.5,0.27781]
[1732901561877,0.2778,3597.7,3597.3,0.5042]